[Event "Titled Tuesday Blitz February 28 Late 2023"]
[White "Sjugirov, Sanan"]
[Black "Quispe Arteaga, Gabriel"]
[WhiteFideId "4189302"]
[BlackFideId "32059809"]
[WhiteElo "2569"]
[BlackElo "2274"]
[Result "1-0"]
[Round "05"]
[TimeControl "180+2"]
[Date "2023.02.28"]
[WhiteClock "0:00:05"]
[BlackClock "0:00:06"]

1. Nf3 {[%clk 0:03:00]}  Nf6 {[%clk 0:02:59]} 2. c4 {[%clk 0:03:00]}  e6 {[%clk 0:02:57]} 3. g3 {[%clk 0:03:00]}  a6 {[%clk 0:02:56]} 4. Bg2 {[%clk 0:02:58]}  b5 {[%clk 0:02:56]} 5. b3 {[%clk 0:02:57]}  Bb7 {[%clk 0:02:56]} 6. O-O {[%clk 0:02:55]}  Be7 {[%clk 0:02:56]} 7. Na3 {[%clk 0:02:49]}  bxc4 {[%clk 0:02:50]} 8. Nxc4 {[%clk 0:02:47]}  c5 {[%clk 0:02:51]} 9. d4 {[%clk 0:02:32]}  cxd4 {[%clk 0:02:47]} 10. Qxd4 {[%clk 0:02:23]}  O-O {[%clk 0:02:47]} 11. Bf4 {[%clk 0:01:54]}  d5 {[%clk 0:02:44]} 12. Nce5 {[%clk 0:01:46]}  Nc6 {[%clk 0:02:34]} 13. Nxc6 {[%clk 0:01:46]}  Bxc6 {[%clk 0:02:35]} 14. Rac1 {[%clk 0:01:27]}  Rc8 {[%clk 0:02:16]} 15. Qa7 {[%clk 0:01:18]}  Ra8 {[%clk 0:01:43]} 16. Qe3 {[%clk 0:01:09]}  Rc8 {[%clk 0:01:42]} 17. Nd4 {[%clk 0:01:05]}  Bb7 {[%clk 0:01:42]} 18. Rxc8 {[%clk 0:01:03]}  Bxc8 {[%clk 0:01:10]} 19. Nc6 {[%clk 0:01:02]}  Qe8 {[%clk 0:01:10]} 20. Nxe7+ {[%clk 0:00:57]}  Qxe7 {[%clk 0:01:10]} 21. Rc1 {[%clk 0:00:53]}  Qa3 {[%clk 0:00:40]} 22. Qc5 {[%clk 0:00:44]}  Qxc5 {[%clk 0:00:39]} 23. Rxc5 {[%clk 0:00:44]}  Bd7 {[%clk 0:00:29]} 24. Ra5 {[%clk 0:00:30]}  Ra8 {[%clk 0:00:28]} 25. Bf1 {[%clk 0:00:28]}  Ne4 {[%clk 0:00:18]} 26. f3 {[%clk 0:00:28]}  Nc3 {[%clk 0:00:16]} 27. Bd2 {[%clk 0:00:27]}  d4 {[%clk 0:00:10]} 28. e3 {[%clk 0:00:25]}  Nb1 {[%clk 0:00:10]} 29. Bc1 {[%clk 0:00:22]}  Rc8 {[%clk 0:00:11]} 30. Bc4 {[%clk 0:00:22]}  d3 {[%clk 0:00:09]} 31. Rxa6 {[%clk 0:00:10]}  d2 {[%clk 0:00:09]} 32. Bxd2 {[%clk 0:00:10]}  Nxd2 {[%clk 0:00:10]} 33. Be2 {[%clk 0:00:11]}  Be8 {[%clk 0:00:09]} 34. Rd6 {[%clk 0:00:09]}  Nb1 {[%clk 0:00:09]} 35. Bc4 {[%clk 0:00:06]}  Na3 {[%clk 0:00:08]} 36. Bd3 {[%clk 0:00:05]}  Kf8 {[%clk 0:00:07]} 37. Ra6 {[%clk 0:00:05]}  Nb5 {[%clk 0:00:07]} 38. a4 {[%clk 0:00:04]}  Nc7 {[%clk 0:00:06]} 39. Rb6 {[%clk 0:00:04]}  Nd5 {[%clk 0:00:06]} 40. Rb7 {[%clk 0:00:04]}  Rc3 {[%clk 0:00:06]} 41. Be4 {[%clk 0:00:02]}  Rc1+ {[%clk 0:00:03]} 42. Kf2 {[%clk 0:00:02]}  Nc3 {[%clk 0:00:04]} 43. Bd3 {[%clk 0:00:02]}  Rd1 {[%clk 0:00:04]} 44. Bc4 {[%clk 0:00:01]}  Rd2+ {[%clk 0:00:04]} 45. Ke1 {[%clk 0:00:02]}  Rxh2 {[%clk 0:00:04]} 46. a5 {[%clk 0:00:02]}  Ra2 {[%clk 0:00:04]} 47. a6 {[%clk 0:00:03]}  Bc6 {[%clk 0:00:02]} 48. Rc7 {[%clk 0:00:03]}  Bxf3 {[%clk 0:00:02]} 49. a7 {[%clk 0:00:03]}  g5 {[%clk 0:00:02]} 50. b4 {[%clk 0:00:02]}  h5 {[%clk 0:00:02]} 51. Bxa2 {[%clk 0:00:02]}  h4 {[%clk 0:00:01]} 52. Rc8+ {[%clk 0:00:02]}  Kg7 {[%clk 0:00:01]} 53. a8=Q {[%clk 0:00:02]}  Bxa8 {[%clk 0:00:01]} 54. Rxa8 {[%clk 0:00:03]}  h3 {[%clk 0:00:02]} 55. Kf1 {[%clk 0:00:03]}  Nd1 {[%clk 0:00:01]} 56. Kg1 {[%clk 0:00:03]}  Nxe3 {[%clk 0:00:01]} 57. Kh2 {[%clk 0:00:04]}  g4 {[%clk 0:00:02]} 58. Bb1 {[%clk 0:00:04]}  Nf1+ {[%clk 0:00:02]} 59. Kg1 {[%clk 0:00:04]}  Nxg3 {[%clk 0:00:03]} 60. Ra2 {[%clk 0:00:04]}  f5 {[%clk 0:00:03]} 61. b5 {[%clk 0:00:04]}  Ne4 {[%clk 0:00:04]} 62. b6 {[%clk 0:00:05]}  Nd6 {[%clk 0:00:05]} 63. Rd2 {[%clk 0:00:05]}  Nc4 {[%clk 0:00:05]} 64. Rd7+ {[%clk 0:00:04]}  Kf6 {[%clk 0:00:06]} 65. b7 {[%clk 0:00:05]}  g3 {[%clk 0:00:05]} 66. b8=Q {[%clk 0:00:06]}  Ne3 {[%clk 0:00:06]} 67. Qxg3 {[%clk 0:00:05]} 1-0


[Site "https://www.chess.com"]

[Event "Titled Tuesday Blitz February 28 Late 2023"]
[White "Berezin, Viktor"]
[Black "Kamsky, Gata"]
[WhiteFideId "14107872"]
[BlackFideId "2000024"]
[WhiteElo "2310"]
[BlackElo "2666"]
[Result "0-1"]
[Round "05"]
[TimeControl "180+2"]
[Date "2023.02.28"]
[WhiteClock "0:01:13"]
[BlackClock "0:02:03"]

1. d4 {[%clk 0:03:00]}  Nf6 {[%clk 0:02:55]} 2. Nf3 {[%clk 0:02:59]}  g6 {[%clk 0:02:53]} 3. g3 {[%clk 0:02:59]}  Bg7 {[%clk 0:02:52]} 4. Bg2 {[%clk 0:03:00]}  O-O {[%clk 0:02:53]} 5. O-O {[%clk 0:03:00]}  d5 {[%clk 0:02:51]} 6. c4 {[%clk 0:02:58]}  c6 {[%clk 0:02:51]} 7. cxd5 {[%clk 0:02:58]}  cxd5 {[%clk 0:02:51]} 8. Nc3 {[%clk 0:02:59]}  e6 {[%clk 0:02:50]} 9. Ne5 {[%clk 0:02:57]}  Nfd7 {[%clk 0:02:49]} 10. Bf4 {[%clk 0:02:54]}  Nxe5 {[%clk 0:02:38]} 11. Bxe5 {[%clk 0:02:49]}  Bxe5 {[%clk 0:02:37]} 12. dxe5 {[%clk 0:02:49]}  Nc6 {[%clk 0:02:37]} 13. e4 {[%clk 0:02:49]}  d4 {[%clk 0:02:36]} 14. Nb5 {[%clk 0:02:49]}  d3 {[%clk 0:02:32]} 15. Rc1 {[%clk 0:02:03]}  Nxe5 {[%clk 0:02:25]} 16. Qa4 {[%clk 0:01:54]}  Bd7 {[%clk 0:02:21]} 17. Qd4 {[%clk 0:01:42]}  Bxb5 {[%clk 0:02:15]} 18. Qxe5 {[%clk 0:01:42]}  d2 {[%clk 0:02:16]} 19. Qxb5 {[%clk 0:01:36]}  dxc1=Q {[%clk 0:02:15]} 20. Rxc1 {[%clk 0:01:36]}  Qb6 {[%clk 0:02:10]} 21. Qe5 {[%clk 0:01:33]}  Rac8 {[%clk 0:02:07]} 22. Qf4 {[%clk 0:01:28]}  Qxb2 {[%clk 0:02:05]} 23. Rxc8 {[%clk 0:01:12]}  Rxc8 {[%clk 0:02:04]} 24. h4 {[%clk 0:01:13]}  Qc1+ {[%clk 0:02:03]} 0-1


[Site "https://www.chess.com"]

[Event "Titled Tuesday Blitz February 28 Late 2023"]
[White "Pulpan, Jakub"]
[Black "Fedoseev, Vladimir"]
[WhiteFideId "302759"]
[BlackFideId "24130737"]
[WhiteElo "2484"]
[BlackElo "2752"]
[Result "1/2-1/2"]
[Round "05"]
[TimeControl "180+2"]
[Date "2023.02.28"]
[WhiteClock "0:00:18"]
[BlackClock "0:00:05"]

1. Nf3 {[%clk 0:03:00]}  Nf6 {[%clk 0:02:24]} 2. b3 {[%clk 0:03:00]}  g6 {[%clk 0:02:23]} 3. Bb2 {[%clk 0:03:00]}  Bg7 {[%clk 0:02:24]} 4. g3 {[%clk 0:03:01]}  O-O {[%clk 0:02:24]} 5. Bg2 {[%clk 0:03:01]}  c5 {[%clk 0:02:17]} 6. c4 {[%clk 0:03:02]}  Nc6 {[%clk 0:02:16]} 7. O-O {[%clk 0:03:00]}  d5 {[%clk 0:02:12]} 8. cxd5 {[%clk 0:03:00]}  Qxd5 {[%clk 0:02:06]} 9. Ne5 {[%clk 0:03:00]}  Qd6 {[%clk 0:02:00]} 10. Nxc6 {[%clk 0:03:00]}  bxc6 {[%clk 0:02:01]} 11. Na3 {[%clk 0:03:01]}  Be6 {[%clk 0:01:41]} 12. Rc1 {[%clk 0:02:59]}  Bd5 {[%clk 0:01:40]} 13. Nc4 {[%clk 0:02:58]}  Qe6 {[%clk 0:01:37]} 14. Ne3 {[%clk 0:02:56]}  Bxg2 {[%clk 0:01:34]} 15. Nxg2 {[%clk 0:02:57]}  Nd7 {[%clk 0:01:09]} 16. Bxg7 {[%clk 0:02:52]}  Kxg7 {[%clk 0:01:10]} 17. d4 {[%clk 0:02:47]}  Rfd8 {[%clk 0:01:02]} 18. Nf4 {[%clk 0:02:41]}  Qf6 {[%clk 0:00:59]} 19. dxc5 {[%clk 0:02:38]}  e5 {[%clk 0:00:51]} 20. Ng2 {[%clk 0:02:27]}  Nxc5 {[%clk 0:00:47]} 21. Qc2 {[%clk 0:02:26]}  Ne6 {[%clk 0:00:47]} 22. Qxc6 {[%clk 0:02:17]}  Rac8 {[%clk 0:00:46]} 23. Qa6 {[%clk 0:02:16]}  Nd4 {[%clk 0:00:41]} 24. Qxf6+ {[%clk 0:02:16]}  Kxf6 {[%clk 0:00:42]} 25. Rxc8 {[%clk 0:02:10]}  Rxc8 {[%clk 0:00:43]} 26. Ne3 {[%clk 0:02:09]}  Nxe2+ {[%clk 0:00:41]} 27. Kg2 {[%clk 0:02:09]}  Ke6 {[%clk 0:00:36]} 28. Re1 {[%clk 0:02:04]}  Nc3 {[%clk 0:00:27]} 29. Nc4 {[%clk 0:02:04]}  f6 {[%clk 0:00:24]} 30. f4 {[%clk 0:02:05]}  Rc5 {[%clk 0:00:19]} 31. fxe5 {[%clk 0:02:05]}  fxe5 {[%clk 0:00:20]} 32. Kf3 {[%clk 0:02:02]}  a5 {[%clk 0:00:20]} 33. Ke3 {[%clk 0:02:01]}  Rb5 {[%clk 0:00:18]} 34. Kd2 {[%clk 0:01:54]}  Nxa2 {[%clk 0:00:18]} 35. Ra1 {[%clk 0:01:55]}  Nb4 {[%clk 0:00:17]} 36. Rxa5 {[%clk 0:01:52]}  Rxa5 {[%clk 0:00:17]} 37. Nxa5 {[%clk 0:01:53]}  Kd5 {[%clk 0:00:17]} 38. Nc4 {[%clk 0:01:52]}  Kd4 {[%clk 0:00:17]} 39. Ne3 {[%clk 0:01:52]}  e4 {[%clk 0:00:16]} 40. h4 {[%clk 0:01:38]}  h5 {[%clk 0:00:15]} 41. g4 {[%clk 0:01:38]}  Ke5 {[%clk 0:00:13]} 42. gxh5 {[%clk 0:01:30]}  gxh5 {[%clk 0:00:13]} 43. Kc3 {[%clk 0:01:30]}  Nc6 {[%clk 0:00:12]} 44. b4 {[%clk 0:01:31]}  Na7 {[%clk 0:00:05]} 45. Kc4 {[%clk 0:00:52]}  Kf4 {[%clk 0:00:05]} 46. Nd5+ {[%clk 0:00:46]}  Kf3 {[%clk 0:00:06]} 47. Kd4 {[%clk 0:00:16]}  Nb5+ {[%clk 0:00:05]} 48. Kc5 {[%clk 0:00:16]}  Na3 {[%clk 0:00:05]} 49. b5 {[%clk 0:00:16]}  Nxb5 {[%clk 0:00:01]} 50. Kxb5 {[%clk 0:00:17]}  Kg4 {[%clk 0:00:02]} 51. Kc4 {[%clk 0:00:17]}  Kxh4 {[%clk 0:00:03]} 52. Kd4 {[%clk 0:00:17]}  Kg3 {[%clk 0:00:03]} 53. Kxe4 {[%clk 0:00:18]}  h4 {[%clk 0:00:04]} 54. Nf4 {[%clk 0:00:18]}  h3 {[%clk 0:00:05]} 55. Nxh3 {[%clk 0:00:18]} 1/2-1/2


[Site "https://www.chess.com"]

[Event "Titled Tuesday Blitz February 28 Late 2023"]
[White "Matinian, Nikita"]
[Black "Madaminov, Mukhiddin"]
[WhiteFideId "24129100"]
[BlackFideId "14210703"]
[WhiteElo "2422"]
[BlackElo "2511"]
[Result "0-1"]
[Round "05"]
[TimeControl "180+2"]
[Date "2023.02.28"]
[WhiteClock "0:00:01"]
[BlackClock "0:00:43"]

1. e4 {[%clk 0:02:56]}  e5 {[%clk 0:02:59]} 2. Nf3 {[%clk 0:02:56]}  Nc6 {[%clk 0:03:00]} 3. Bb5 {[%clk 0:02:57]}  a6 {[%clk 0:03:00]} 4. Ba4 {[%clk 0:02:57]}  Nf6 {[%clk 0:03:01]} 5. d3 {[%clk 0:02:58]}  d6 {[%clk 0:03:00]} 6. c3 {[%clk 0:02:57]}  g6 {[%clk 0:02:59]} 7. O-O {[%clk 0:02:56]}  Bg7 {[%clk 0:03:00]} 8. Re1 {[%clk 0:02:53]}  O-O {[%clk 0:03:00]} 9. Nbd2 {[%clk 0:02:53]}  h6 {[%clk 0:02:54]} 10. Nf1 {[%clk 0:02:53]}  Re8 {[%clk 0:02:50]} 11. Ng3 {[%clk 0:02:48]}  b5 {[%clk 0:02:46]} 12. Bc2 {[%clk 0:02:47]}  a5 {[%clk 0:02:36]} 13. a4 {[%clk 0:02:35]}  b4 {[%clk 0:02:36]} 14. Bd2 {[%clk 0:02:25]}  Rb8 {[%clk 0:02:28]} 15. Bb3 {[%clk 0:02:19]}  bxc3 {[%clk 0:02:26]} 16. bxc3 {[%clk 0:02:16]}  Ba6 {[%clk 0:02:27]} 17. d4 {[%clk 0:02:02]}  Nd7 {[%clk 0:02:16]} 18. Bd5 {[%clk 0:01:51]}  Ne7 {[%clk 0:02:14]} 19. Ba2 {[%clk 0:01:51]}  c5 {[%clk 0:01:57]} 20. h4 {[%clk 0:01:45]}  cxd4 {[%clk 0:01:45]} 21. cxd4 {[%clk 0:01:45]}  exd4 {[%clk 0:01:45]} 22. h5 {[%clk 0:01:46]}  g5 {[%clk 0:01:46]} 23. Bxg5 {[%clk 0:01:39]}  hxg5 {[%clk 0:01:38]} 24. Nxg5 {[%clk 0:01:40]}  Ne5 {[%clk 0:01:34]} 25. f4 {[%clk 0:01:30]}  Nc4 {[%clk 0:01:32]} 26. Rc1 {[%clk 0:01:18]}  d5 {[%clk 0:01:29]} 27. exd5 {[%clk 0:01:03]}  Ne3 {[%clk 0:01:17]} 28. Rxe3 {[%clk 0:00:55]}  dxe3 {[%clk 0:01:10]} 29. Qc2 {[%clk 0:00:36]}  Qd6 {[%clk 0:00:58]} 30. N3e4 {[%clk 0:00:21]}  Qxf4 {[%clk 0:00:55]} 31. d6 {[%clk 0:00:21]}  Rb2 {[%clk 0:00:54]} 32. d7 {[%clk 0:00:04]}  Rf8 {[%clk 0:00:45]} 33. Bxf7+ {[%clk 0:00:02]}  Qxf7 {[%clk 0:00:44]} 34. Nf6+ {[%clk 0:00:01]}  Bxf6 {[%clk 0:00:43]} 0-1


[Site "https://www.chess.com"]

[Event "Titled Tuesday Blitz February 28 Late 2023"]
[White "Fus, Jakub"]
[Black "Zhigalko, Sergei"]
[WhiteFideId "1193023"]
[BlackFideId "13502956"]
[WhiteElo "2335"]
[BlackElo "2626"]
[Result "1-0"]
[Round "05"]
[TimeControl "180+2"]
[Date "2023.02.28"]
[WhiteClock "0:00:45"]
[BlackClock "0:00:01"]

1. e4 {[%clk 0:02:51]}  c5 {[%clk 0:03:00]} 2. Nf3 {[%clk 0:02:49]}  Nc6 {[%clk 0:03:00]} 3. Bb5 {[%clk 0:02:48]}  Nf6 {[%clk 0:03:01]} 4. Nc3 {[%clk 0:02:45]}  Qc7 {[%clk 0:03:01]} 5. Bxc6 {[%clk 0:02:43]}  dxc6 {[%clk 0:03:01]} 6. O-O {[%clk 0:02:42]}  Bg4 {[%clk 0:03:01]} 7. h3 {[%clk 0:02:42]}  Bh5 {[%clk 0:03:01]} 8. d3 {[%clk 0:02:40]}  Nd7 {[%clk 0:03:00]} 9. Bg5 {[%clk 0:02:25]}  e6 {[%clk 0:02:59]} 10. Bh4 {[%clk 0:02:14]}  Bd6 {[%clk 0:02:59]} 11. g4 {[%clk 0:02:14]}  Bg6 {[%clk 0:02:58]} 12. Kg2 {[%clk 0:02:15]}  h5 {[%clk 0:02:52]} 13. g5 {[%clk 0:02:12]}  O-O-O {[%clk 0:02:38]} 14. Ne2 {[%clk 0:02:12]}  c4 {[%clk 0:02:37]} 15. Bg3 {[%clk 0:02:06]}  Nc5 {[%clk 0:02:23]} 16. Bxd6 {[%clk 0:02:01]}  Rxd6 {[%clk 0:02:12]} 17. e5 {[%clk 0:01:55]}  Rd7 {[%clk 0:01:51]} 18. d4 {[%clk 0:01:56]}  h4 {[%clk 0:01:39]} 19. Nf4 {[%clk 0:01:53]}  Be4 {[%clk 0:01:35]} 20. c3 {[%clk 0:01:35]}  Qd8 {[%clk 0:01:06]} 21. Kh2 {[%clk 0:01:29]}  Nd3 {[%clk 0:01:06]} 22. Nxd3 {[%clk 0:01:26]}  Bxd3 {[%clk 0:00:59]} 23. Rg1 {[%clk 0:01:24]}  c5 {[%clk 0:00:52]} 24. Rg4 {[%clk 0:01:24]}  Rd5 {[%clk 0:00:46]} 25. Qe1 {[%clk 0:01:22]}  Qb6 {[%clk 0:00:42]} 26. b3 {[%clk 0:01:16]}  Kb8 {[%clk 0:00:28]} 27. Qe3 {[%clk 0:01:11]}  cxd4 {[%clk 0:00:26]} 28. Nxd4 {[%clk 0:01:10]}  Qc7 {[%clk 0:00:10]} 29. f4 {[%clk 0:01:10]}  Bf5 {[%clk 0:00:10]} 30. Rg2 {[%clk 0:01:08]}  cxb3 {[%clk 0:00:07]} 31. axb3 {[%clk 0:01:09]}  a6 {[%clk 0:00:07]} 32. c4 {[%clk 0:00:57]}  Rd7 {[%clk 0:00:06]} 33. Nb5 {[%clk 0:00:54]}  axb5 {[%clk 0:00:04]} 34. Qa7+ {[%clk 0:00:54]}  Kc8 {[%clk 0:00:05]} 35. cxb5 {[%clk 0:00:50]}  Rhd8 {[%clk 0:00:04]} 36. b6 {[%clk 0:00:45]}  Qb8 {[%clk 0:00:01]} 37. Rc1+ {[%clk 0:00:45]} 1-0


[Site "https://www.chess.com"]

[Event "Titled Tuesday Blitz February 28 Late 2023"]
[White "Moroni, Luca Jr"]
[Black "Yang, Qindong"]
[WhiteFideId "865834"]
[BlackFideId "8603758"]
[WhiteElo "2569"]
[BlackElo "2090"]
[Result "1-0"]
[Round "05"]
[TimeControl "180+2"]
[Date "2023.02.28"]
[WhiteClock "0:00:15"]
[BlackClock "0:00:04"]

1. Nf3 {[%clk 0:03:00]}  Nf6 {[%clk 0:02:58]} 2. g3 {[%clk 0:02:53]}  g6 {[%clk 0:02:54]} 3. b3 {[%clk 0:02:53]}  Bg7 {[%clk 0:02:55]} 4. Bb2 {[%clk 0:02:54]}  O-O {[%clk 0:02:55]} 5. d4 {[%clk 0:02:53]}  d6 {[%clk 0:02:55]} 6. Bg2 {[%clk 0:02:53]}  e5 {[%clk 0:02:55]} 7. dxe5 {[%clk 0:02:53]}  Nfd7 {[%clk 0:02:54]} 8. O-O {[%clk 0:02:53]}  Nxe5 {[%clk 0:02:49]} 9. Qc1 {[%clk 0:02:53]}  Nbc6 {[%clk 0:02:45]} 10. c4 {[%clk 0:02:53]}  Bg4 {[%clk 0:02:33]} 11. Nbd2 {[%clk 0:02:51]}  Re8 {[%clk 0:02:30]} 12. Re1 {[%clk 0:02:50]}  a5 {[%clk 0:02:26]} 13. Nxe5 {[%clk 0:02:48]}  dxe5 {[%clk 0:02:25]} 14. Ne4 {[%clk 0:02:43]}  Nd4 {[%clk 0:02:15]} 15. Qd2 {[%clk 0:02:31]}  a4 {[%clk 0:01:46]} 16. Bxd4 {[%clk 0:02:18]}  exd4 {[%clk 0:01:34]} 17. Nc5 {[%clk 0:02:14]}  axb3 {[%clk 0:01:22]} 18. Nxb3 {[%clk 0:02:00]}  c6 {[%clk 0:00:48]} 19. h3 {[%clk 0:01:52]}  Be6 {[%clk 0:00:42]} 20. Rac1 {[%clk 0:01:51]}  Ra4 {[%clk 0:00:30]} 21. Nc5 {[%clk 0:01:48]}  Ra7 {[%clk 0:00:31]} 22. Nxe6 {[%clk 0:01:33]}  Rxe6 {[%clk 0:00:31]} 23. Rb1 {[%clk 0:01:33]}  h5 {[%clk 0:00:25]} 24. h4 {[%clk 0:01:31]}  Qe7 {[%clk 0:00:25]} 25. Bf3 {[%clk 0:01:24]}  Qa3 {[%clk 0:00:25]} 26. Rb2 {[%clk 0:01:00]}  Qc3 {[%clk 0:00:25]} 27. Rc2 {[%clk 0:00:49]}  Qxd2 {[%clk 0:00:24]} 28. Rxd2 {[%clk 0:00:50]}  Ra3 {[%clk 0:00:24]} 29. Kf1 {[%clk 0:00:45]}  Re8 {[%clk 0:00:19]} 30. Rb1 {[%clk 0:00:42]}  Rea8 {[%clk 0:00:13]} 31. Rxb7 {[%clk 0:00:39]}  Rxa2 {[%clk 0:00:14]} 32. Rxa2 {[%clk 0:00:40]}  Rxa2 {[%clk 0:00:15]} 33. Bxc6 {[%clk 0:00:40]}  Ra1+ {[%clk 0:00:15]} 34. Kg2 {[%clk 0:00:40]}  Ra2 {[%clk 0:00:13]} 35. Kf1 {[%clk 0:00:32]}  Ra1+ {[%clk 0:00:13]} 36. Kg2 {[%clk 0:00:32]}  Ra2 {[%clk 0:00:14]} 37. Bf3 {[%clk 0:00:25]}  Kf8 {[%clk 0:00:13]} 38. Bd5 {[%clk 0:00:23]}  Be5 {[%clk 0:00:05]} 39. Rxf7+ {[%clk 0:00:22]}  Ke8 {[%clk 0:00:06]} 40. Kf3 {[%clk 0:00:20]}  Ra3+ {[%clk 0:00:06]} 41. Ke4 {[%clk 0:00:20]}  Bd6 {[%clk 0:00:03]} 42. Rb7 {[%clk 0:00:20]}  Ra2 {[%clk 0:00:03]} 43. Kf3 {[%clk 0:00:20]}  Ra3+ {[%clk 0:00:03]} 44. Kg2 {[%clk 0:00:20]}  Ra2 {[%clk 0:00:04]} 45. Bf3 {[%clk 0:00:17]}  Ra3 {[%clk 0:00:04]} 46. Rb6 {[%clk 0:00:16]}  Be7 {[%clk 0:00:04]} 47. Rxg6 {[%clk 0:00:15]} 1-0


[Site "https://www.chess.com"]

[Event "Titled Tuesday Blitz February 28 Late 2023"]
[White "Thomforde-Toates, Noah"]
[Black "Gokerkan, Cem Kaan"]
[WhiteFideId "30951992"]
[BlackFideId "6336760"]
[WhiteElo "2634"]
[BlackElo "2365"]
[Result "0-1"]
[Round "05"]
[TimeControl "180+2"]
[Date "2023.02.28"]
[WhiteClock "0:01:21"]
[BlackClock "0:01:12"]

1. e4 {[%clk 0:03:00]}  e5 {[%clk 0:02:59]} 2. Nf3 {[%clk 0:02:58]}  Nf6 {[%clk 0:03:00]} 3. Nxe5 {[%clk 0:02:56]}  d5 {[%clk 0:03:01]} 4. exd5 {[%clk 0:02:52]}  Qxd5 {[%clk 0:03:02]} 5. d4 {[%clk 0:02:48]}  Nc6 {[%clk 0:03:01]} 6. Nxc6 {[%clk 0:02:42]}  Qxc6 {[%clk 0:03:02]} 7. Nc3 {[%clk 0:02:42]}  Bb4 {[%clk 0:03:03]} 8. Bd2 {[%clk 0:02:42]}  O-O {[%clk 0:03:01]} 9. Qf3 {[%clk 0:02:41]}  Re8+ {[%clk 0:02:58]} 10. Be2 {[%clk 0:02:38]}  Bxc3 {[%clk 0:02:56]} 11. Bxc3 {[%clk 0:02:36]}  Bg4 {[%clk 0:02:56]} 12. Qxc6 {[%clk 0:02:31]}  Rxe2+ {[%clk 0:02:56]} 13. Kf1 {[%clk 0:02:28]}  bxc6 {[%clk 0:02:56]} 14. h3 {[%clk 0:02:24]}  Rxc2 {[%clk 0:02:30]} 15. hxg4 {[%clk 0:02:24]}  Nxg4 {[%clk 0:02:31]} 16. Rh4 {[%clk 0:02:21]}  f5 {[%clk 0:02:09]} 17. Kg1 {[%clk 0:02:16]}  Re8 {[%clk 0:01:59]} 18. Rh3 {[%clk 0:02:10]}  Rxf2 {[%clk 0:01:54]} 19. Rf1 {[%clk 0:02:07]}  Rxf1+ {[%clk 0:01:49]} 20. Kxf1 {[%clk 0:02:07]}  Re3 {[%clk 0:01:43]} 21. Rh4 {[%clk 0:01:49]}  h6 {[%clk 0:01:37]} 22. a4 {[%clk 0:01:46]}  g5 {[%clk 0:01:32]} 23. Rh1 {[%clk 0:01:45]}  Kf7 {[%clk 0:01:31]} 24. a5 {[%clk 0:01:45]}  a6 {[%clk 0:01:31]} 25. Rh3 {[%clk 0:01:38]}  Rxh3 {[%clk 0:01:30]} 26. gxh3 {[%clk 0:01:39]}  Ne3+ {[%clk 0:01:31]} 27. Ke2 {[%clk 0:01:38]}  Nd5 {[%clk 0:01:30]} 28. Bd2 {[%clk 0:01:37]}  Kf6 {[%clk 0:01:20]} 29. Kf3 {[%clk 0:01:36]}  h5 {[%clk 0:01:19]} 30. Be1 {[%clk 0:01:32]}  g4+ {[%clk 0:01:12]} 31. hxg4 {[%clk 0:01:30]}  hxg4+ {[%clk 0:01:12]} 32. Kg3 {[%clk 0:01:30]}  Kg5 {[%clk 0:01:12]} 33. Kf2 {[%clk 0:01:27]}  f4 {[%clk 0:01:13]} 34. Ke2 {[%clk 0:01:25]}  Kf5 {[%clk 0:01:13]} 35. Kd3 {[%clk 0:01:24]}  g3 {[%clk 0:01:13]} 36. b3 {[%clk 0:01:22]}  Kg4 {[%clk 0:01:13]} 37. Ke2 {[%clk 0:01:21]}  f3+ {[%clk 0:01:13]} 38. Kf1 {[%clk 0:01:21]}  Ne3+ {[%clk 0:01:12]} 39. Kg1 {[%clk 0:01:21]}  f2+ {[%clk 0:01:10]} 40. Bxf2 {[%clk 0:01:22]}  gxf2+ {[%clk 0:01:11]} 41. Kxf2 {[%clk 0:01:23]}  Kf4 {[%clk 0:01:12]} 42. b4 {[%clk 0:01:21]}  Nd5 {[%clk 0:01:12]} 0-1


[Site "https://www.chess.com"]

[Event "Titled Tuesday Blitz February 28 Late 2023"]
[White "Gunduz, Umut Erdem"]
[Black "Mendonca, Leon Luke"]
[WhiteFideId "6381383"]
[BlackFideId "35028561"]
[WhiteElo "2182"]
[BlackElo "2464"]
[Result "0-1"]
[Round "05"]
[TimeControl "180+2"]
[Date "2023.02.28"]
[WhiteClock "0:00:05"]
[BlackClock "0:01:00"]

1. e4 {[%clk 0:03:00]}  c5 {[%clk 0:02:58]} 2. Nf3 {[%clk 0:03:00]}  b6 {[%clk 0:02:58]} 3. d4 {[%clk 0:03:01]}  cxd4 {[%clk 0:02:59]} 4. Nxd4 {[%clk 0:03:01]}  Bb7 {[%clk 0:02:59]} 5. Bd3 {[%clk 0:03:00]}  Nc6 {[%clk 0:02:57]} 6. Be3 {[%clk 0:02:59]}  Nf6 {[%clk 0:02:56]} 7. Nxc6 {[%clk 0:02:49]}  Bxc6 {[%clk 0:02:56]} 8. Nc3 {[%clk 0:02:45]}  e5 {[%clk 0:02:54]} 9. O-O {[%clk 0:02:38]}  Bb4 {[%clk 0:02:54]} 10. f4 {[%clk 0:02:21]}  Bxc3 {[%clk 0:02:44]} 11. bxc3 {[%clk 0:02:20]}  d6 {[%clk 0:02:44]} 12. Qf3 {[%clk 0:02:14]}  Qe7 {[%clk 0:02:31]} 13. fxe5 {[%clk 0:02:11]}  dxe5 {[%clk 0:02:31]} 14. Bg5 {[%clk 0:02:11]}  Bd7 {[%clk 0:01:48]} 15. Bxf6 {[%clk 0:02:10]}  gxf6 {[%clk 0:01:47]} 16. Qxf6 {[%clk 0:02:10]}  Qxf6 {[%clk 0:01:47]} 17. Rxf6 {[%clk 0:02:11]}  Ke7 {[%clk 0:01:47]} 18. Raf1 {[%clk 0:02:09]}  Be6 {[%clk 0:01:47]} 19. a4 {[%clk 0:01:43]}  Rac8 {[%clk 0:01:45]} 20. c4 {[%clk 0:01:41]}  Rc5 {[%clk 0:01:45]} 21. R6f3 {[%clk 0:01:10]}  Ra5 {[%clk 0:01:42]} 22. Ra1 {[%clk 0:01:05]}  Bd7 {[%clk 0:01:25]} 23. Rff1 {[%clk 0:00:45]}  Rc8 {[%clk 0:01:23]} 24. Rfb1 {[%clk 0:00:36]}  Rc7 {[%clk 0:01:20]} 25. Kf2 {[%clk 0:00:36]}  Rxa4 {[%clk 0:01:18]} 26. Ke3 {[%clk 0:00:34]}  Rxa1 {[%clk 0:01:10]} 27. Rxa1 {[%clk 0:00:34]}  Kd6 {[%clk 0:01:11]} 28. Rf1 {[%clk 0:00:24]}  Be6 {[%clk 0:01:10]} 29. Rf6 {[%clk 0:00:22]}  Kc5 {[%clk 0:01:00]} 30. Rh6 {[%clk 0:00:22]}  a5 {[%clk 0:01:00]} 31. Rxh7 {[%clk 0:00:21]}  a4 {[%clk 0:00:59]} 32. Kd2 {[%clk 0:00:19]}  Kb4 {[%clk 0:00:59]} 33. Kc1 {[%clk 0:00:18]}  Kc3 {[%clk 0:00:59]} 34. Kb1 {[%clk 0:00:18]}  a3 {[%clk 0:00:58]} 35. Ka2 {[%clk 0:00:18]}  b5 {[%clk 0:00:59]} 36. h4 {[%clk 0:00:08]}  bxc4 {[%clk 0:00:59]} 37. Bf1 {[%clk 0:00:08]}  Kxc2 {[%clk 0:00:59]} 38. Kxa3 {[%clk 0:00:07]}  c3 {[%clk 0:00:59]} 39. h5 {[%clk 0:00:05]}  Kd2 {[%clk 0:00:59]} 40. Rh8 {[%clk 0:00:05]}  c2 {[%clk 0:00:59]} 41. Rd8+ {[%clk 0:00:05]}  Ke1 {[%clk 0:01:00]} 0-1


[Site "https://www.chess.com"]